[Event "Queens Festival Final Team 2022"]
[Site "Tornelo"]
[Date "2022.06.26"]
[Round "8.3"]
[White "Krush, Irina"]
[Black "Marape, Naledi"]
[Result "1-0"]
[ECO "D06"]
[WhiteElo "2430"]
[BlackElo "1707"]
[Annotator "TA"]
[PlyCount "53"]
[EventDate "2022.06.24"]
[EventType "team-tourn"]
[EventCountry "NET"]
[SourceTitle "playchess.com"]
[Source "ChessBase"]
[SourceQuality "1"]
[WhiteTeam "United States"]
[BlackTeam "Botswana"]
[WhiteTeamCountry "USA"]
[BlackTeamCountry "BOT"]
[TimeControl "180+2"]

{[%evp 11,52,83,121,117,120,114,173,168,205,125,133,117,195,195,188,184,173,180,191,157,216,159,156,172,167,162,180,151,213,217,320,322,311,317,443,438,458,447,29996,29997,29997,29993,29999]} 1. d4 {[%emt 0:00:02]} d5 {[%emt 0:00:10]} 2. c4 {[%emt 0:00:02]} Nf6 {[%emt 0:00:07]} 3. cxd5 {[%emt 0:00:02]} Nxd5 {[%emt 0:00:04]} 4. e4 {[%emt 0:00:02]} Nf6 {[%emt 0:00:03]} 5. Nc3 {[%emt 0:00:02]} c6 {[%emt 0:00:06]} 6. Nf3 {[%emt 0:00:03]} e6 {[%emt 0:00:04]} 7. Bd3 {[%emt 0:00:03] D06: Queen's Gambit: Symmetrical and Baltic Defences.} Be7 {[%emt 0:00:05]} 8. O-O {[%emt 0:00:07] White is more active.} O-O {[%emt 0:00:06]} (8... b6 $16 {was necessary.}) 9. Qc2 $18 {[%emt 0:00:10] Threatens to win with e5. White is clearly better.} h6 {[%emt 0:00:10]} 10. h3 {[%emt 0:00:01] [#]} Nbd7 $146 {[%emt 0:00:05]} ({Predecessor:} 10... a5 11. Bf4 b6 12. Rad1 Bb7 13. Qe2 Nh5 14. Bc1 Na6 15. e5 Nb4 16. Bb1 Ba6 {1-0 (40) Laffont,J (1590)-Draba,H (1636) LSS email 2012}) 11. Be3 {[%emt 0:00:02]} c5 {[%emt 0:00:04]} (11... Re8 $16 12. a3 Qc7) 12. e5 {[%emt 0:00:22]} Nd5 {[%emt 0:00:16]} 13. Nxd5 {[%emt 0:00:02]} exd5 {[%emt 0:00:05]} 14. dxc5 {[%emt 0:00:02]} Qc7 {[%emt 0:00:08]} 15. Bd4 {[%emt 0:00:12]} ({Don't do} 15. Bh7+ $6 Kh8 $16) 15... b6 {[%emt 0:00:16]} (15... a5 $16 {was worth a try.}) 16. cxb6 {[%emt 0:00:10]} Qxc2 {[%emt 0:00:04]} 17. Bxc2 {[%emt 0:00:02]} Nxb6 {[%emt 0:00:06]} 18. b3 {[%emt 0:00:08]} Ba6 {[%emt 0:00:05]} 19. Rfd1 {[%emt 0:00:17][%cal Bf1d1,Bd1c1,Bc1c7,Bc7g7][%mdl 32]} Rac8 {[%emt 0:00:03]} (19... Be2 $16) 20. Bf5 {[%emt 0:00:08]} Rc6 {[%emt 0:00:05]} (20... Rc7 $142 21. Rac1 Rb7) 21. Rac1 {[%emt 0:00:11]} Rxc1 {[%emt 0:00:15]} 22. Rxc1 {[%emt 0:00:01] Black must now prevent Rc7.} Ba3 {[%emt 0:00:22]} 23. Rc7 {[%emt 0:00:03]} Nc8 {[%emt 0:00:24]} 24. e6 {[%emt 0:00:11] [#] And now exf7+ would win.} fxe6 {[%emt 0:00:12]} (24... Bd6 $18) 25. Rxg7+ {[%emt 0:00:04] White mates.} Kh8 {[%emt 0:00:05]} 26. Rxa7+ {[%emt 0:00:05]} Kg8 {[%emt 0:00:09]} 27. Bh7# {[%emt 0:00:02] Weighted Error Value: White=0.13 (very precise) /Black=0.69} 1-0

[Event "Queens Festival Final Team 2022"]
[Site "Tornelo"]
[Date "2022.06.26"]
[Round "8.3"]
[White "Yellamraju, Aparna"]
[Black "Francis, Onkemetse"]
[Result "1-0"]
[ECO "E09"]
[WhiteElo "1720"]
[BlackElo "1777"]
[Annotator "NA RC"]
[PlyCount "75"]
[EventDate "2022.06.24"]
[EventType "team-tourn"]
[EventCountry "NET"]
[SourceTitle "playchess.com"]
[Source "ChessBase"]
[SourceQuality "1"]
[WhiteTeam "United States"]
[BlackTeam "Botswana"]
[WhiteTeamCountry "USA"]
[BlackTeamCountry "BOT"]
[TimeControl "180+2"]

1. d4 {[%emt 0:00:02]} d5 {[%emt 0:00:05]} 2. c4 {[%emt 0:00:02]} e6 {[%emt 0:00:01]} 3. Nf3 {[%emt 0:00:02]} Nf6 {[%emt 0:00:02]} 4. g3 {[%emt 0:00:01]} Be7 {[%emt 0:00:01]} 5. Bg2 {[%emt 0:00:02]} c6 {[%emt 0:00:04]} 6. O-O {[%emt 0:00:02]} O-O {[%emt 0:00:04]} 7. Qc2 {[%emt 0:00:05]} Nbd7 {[%emt 0:00:06]} 8. Nbd2 {[%emt 0:00:14]} Re8 {[%emt 0:00:05]} 9. b3 {[%emt 0:00:12]} b6 {[%emt 0:00:13]} 10. Bb2 {[%emt 0:00:03]} Bb7 {[%emt 0:00:02]} 11. e4 {[%emt 0:00:02]} dxc4 {[%emt 0:00:14]} 12. bxc4 {[%emt 0:00:05]} h6 {[%emt 0:00:07]} 13. Rad1 {[%emt 0:00:07]} Rc8 {[%emt 0:00:04]} 14. e5 {[%emt 0:00:07]} Nh7 {[%emt 0:00:03]} 15. Qa4 {[%emt 0:00:09]} a6 {[%emt 0:00:08]} 16. Ba3 {[%emt 0:00:07]} b5 {[%emt 0:00:06]} 17. Qb3 {[%emt 0:00:07]} Ndf8 {[%emt 0:00:36]} 18. Bxe7 {[%emt 0:00:03]} Qxe7 {[%emt 0:00:02]} 19. Ne4 {[%emt 0:00:11]} Red8 {[%emt 0:00:06]} 20. Nd6 {[%emt 0:00:02]} Rc7 {[%emt 0:00:02]} 21. Ne1 {[%emt 0:00:12]} Rxd6 {[%emt 0:00:02]} 22. exd6 {[%emt 0:00:02]} Qxd6 {[%emt 0:00:03]} 23. cxb5 {[%emt 0:00:03]} cxb5 {[%emt 0:00:02]} 24. Bxb7 {[%emt 0:00:03]} Rxb7 {[%emt 0:00:02]} 25. Qf3 {[%emt 0:00:02]} Rb8 {[%emt 0:00:04]} 26. Nd3 {[%emt 0:00:04]} Nf6 {[%emt 0:00:02]} 27. Ne5 {[%emt 0:00:02]} N8d7 {[%emt 0:00:05]} 28. Nxd7 {[%emt 0:00:03]} Qxd7 {[%emt 0:00:03]} 29. Rd2 {[%emt 0:00:08]} a5 {[%emt 0:00:03]} 30. Rfd1 {[%emt 0:00:05]} b4 {[%emt 0:00:02]} 31. Qb3 {[%emt 0:00:04]} Nd5 {[%emt 0:00:03]} 32. Qc4 {[%emt 0:00:11]} Qa4 {[%emt 0:00:08]} 33. Rb1 {[%emt 0:00:11]} Nc3 {[%emt 0:00:06]} 34. Rbb2 {[%emt 0:00:04]} Nd5 {[%emt 0:00:08]} 35. Qb3 {[%emt 0:00:07]} Qb5 {[%emt 0:00:06]} 36. Qd3 {[%emt 0:00:04]} Qc6 {[%emt 0:00:04]} 37. Rdc2 {[%emt 0:00:04]} Qd6 {[%emt 0:00:02]} 38. Qe4 {[%emt 0:00:08]} 1-0

[Event "Queens Festival Final Team 2022"]
[Site "Tornelo"]
[Date "2022.06.26"]
[Round "8.3"]
[White "Moshoboro Arona"]
[Black "Bian, Erin"]
[Result "0-1"]
[ECO "E21"]
[WhiteElo "1555"]
[BlackElo "1811"]
[Annotator "NA"]
[PlyCount "60"]
[EventDate "2022.06.24"]
[EventType "team-tourn"]
[EventCountry "NET"]
[SourceTitle "playchess.com"]
[Source "ChessBase"]
[SourceQuality "1"]
[WhiteTeam "Botswana"]
[BlackTeam "United States"]
[WhiteTeamCountry "BOT"]
[BlackTeamCountry "USA"]
[TimeControl "180+2"]

1. d4 {[%emt 0:00:02]} Nf6 {[%emt 0:00:04]} 2. c4 {[%emt 0:00:04]} e6 {[%emt 0:00:01]} 3. Nc3 {[%emt 0:00:02]} Bb4 {[%emt 0:00:01]} 4. Bd2 {[%emt 0:00:01]} b6 {[%emt 0:00:03]} 5. e3 {[%emt 0:00:02]} Bb7 {[%emt 0:00:05]} 6. Be2 {[%emt 0:00:02]} O-O {[%emt 0:00:07]} 7. Nf3 {[%emt 0:00:03]} d5 {[%emt 0:00:06]} 8. O-O {[%emt 0:00:13]} c5 {[%emt 0:00:09]} 9. a3 {[%emt 0:00:04]} Bxc3 {[%emt 0:00:02]} 10. Bxc3 {[%emt 0:00:04]} Nc6 {[%emt 0:00:01]} 11. cxd5 {[%emt 0:00:04]} exd5 {[%emt 0:00:01]} 12. Qc2 {[%emt 0:00:09]} Rc8 {[%emt 0:00:11]} 13. Rac1 {[%emt 0:00:03]} cxd4 {[%emt 0:00:08]} 14. exd4 {[%emt 0:00:13]} Ne4 {[%emt 0:00:04]} 15. Qd3 {[%emt 0:00:10]} Re8 {[%emt 0:00:06]} 16. Ne5 {[%emt 0:00:06]} Nxe5 {[%emt 0:00:06]} 17. dxe5 {[%emt 0:00:03]} Nxc3 {[%emt 0:00:01]} 18. Rxc3 {[%emt 0:00:08]} Rxe5 {[%emt 0:00:05]} 19. Rxc8 {[%emt 0:00:05]} Qxc8 {[%emt 0:00:02]} 20. Bf3 {[%emt 0:00:04]} Qe6 {[%emt 0:00:05]} 21. h3 {[%emt 0:00:07]} g6 {[%emt 0:00:04]} 22. Qc3 {[%emt 0:00:08]} d4 {[%emt 0:00:21]} 23. Qxd4 {[%emt 0:00:04]} Bxf3 {[%emt 0:00:02]} 24. gxf3 {[%emt 0:00:07]} Rh5 {[%emt 0:00:07]} 25. Qd8+ {[%emt 0:00:04]} Kg7 {[%emt 0:00:02]} 26. Qd4+ {[%emt 0:00:02]} f6 {[%emt 0:00:09]} 27. Rc1 {[%emt 0:00:13]} Qxh3 {[%emt 0:00:06]} 28. Rc7+ {[%emt 0:00:03]} Kh6 {[%emt 0:00:01]} 29. Qf4+ {[%emt 0:00:18]} Rg5+ {[%emt 0:00:02]} 30. Qg3 {[%emt 0:00:15]} Rxg3+ {[%emt 0:00:02]} 0-1

[Event "Queens Festival Final Team 2022"]
[Site "Tornelo"]
[Date "2022.06.26"]
[Round "8.4"]
[White "Alboredo, Julia"]
[Black "Shah, Riya"]
[Result "1-0"]
[ECO "C56"]
[WhiteElo "2252"]
[BlackElo "1559"]
[Annotator "TA"]
[PlyCount "69"]
[EventDate "2022.06.24"]
[EventType "team-tourn"]
[EventCountry "NET"]
[SourceTitle "playchess.com"]
[Source "ChessBase"]
[SourceQuality "1"]
[WhiteTeam "Brazil"]
[BlackTeam "Kenya"]
[WhiteTeamCountry "BRA"]
[BlackTeamCountry "KEN"]
[TimeControl "180+2"]

{[%evp 9,69,-11,30,20,177,167,647,654,652,648,1131,797,786,767,1130,1124,1085,993,1553,1497,1598,1389,1443,1010,2442,2448,3029,2414,2270,2292,2336,1051,1046,1040,1022,934,895,877,1061,895,897,893,887,856,1044,1031,1160,1093,1481,1525,1496,1475,6627,6425,6137,3089,6111,5610,29976,29976,29991,29992]} 1. e4 {[%emt 0:00:02]} e5 {[%emt 0:00:04]} 2. Nf3 {[%emt 0:00:02]} Nc6 {[%emt 0:00:01]} 3. d4 {[%emt 0:00:01]} exd4 {[%emt 0:00:03]} 4. Bc4 {[%emt 0:00:01]} Nf6 {[%emt 0:00:11]} 5. e5 {[%emt 0:00:02]} Ng8 {[%emt 0:00:03]} 6. O-O {[%emt 0:00:03] [#] C56: Two Knights: 4 d4 exd4 5 0-0 Nxe4.} Nge7 $146 {[%emt 0:00:06] [#]} (6... d5 $11 7. exd6 Qxd6) ({Predecessor:} 6... Bc5 7. Re1 Nge7 8. c3 dxc3 9. Nxc3 O-O 10. a3 h6 11. Qc2 Re8 12. Ne4 Bb6 13. Bxh6 Ng6 {1-0 (38) Schriefer,L (1037)-Zimmer,T (1013) Magdeburg 2021}) 7. Re1 $1 $18 {[%emt 0:00:06] Threatens to win with Ng5.} ({Much less strong is} 7. Nxd4 $6 Nxe5 8. Bb3 g6 $14) 7... g6 $2 {[%emt 0:00:13] [#]} (7... h6) 8. Ng5 $1 {[%emt 0:00:02][%csl Gg5][%cal Rc4f7] White is clearly winning.} d5 {[%emt 0:00:05]} 9. exd6 $1 {[%emt 0:00:02][%mdl 64] Pin} Be6 {[%emt 0:00:26]} 10. dxe7 {[%emt 0:00:04]} Bxe7 {[%emt 0:00:02]} 11. Bxe6 {[%emt 0:00:06]} fxe6 {[%emt 0:00:01]} 12. Nxe6 {[%emt 0:00:02]} Qd6 {[%emt 0:00:04]} 13. Bf4 {[%emt 0:00:02]} Qb4 {[%emt 0:00:14]} 14. Nxc7+ {[%emt 0:00:03]} Kd7 {[%emt 0:00:01]} 15. Nxa8 {[%emt 0:00:15]} Rxa8 {[%emt 0:00:02]} 16. Nd2 {[%emt 0:00:08] Strongly threatening Qg4+.} Qxb2 {[%emt 0:00:03]} 17. Nc4 {[%emt 0:00:02]} Qb4 {[%emt 0:00:06]} 18. Ne5+ {[%emt 0:00:03]} Nxe5 {[%emt 0:00:02]} 19. Bxe5 {[%emt 0:00:01] White threatens Qg4+ and mate.} Rf8 {[%emt 0:00:02]} 20. Qxd4+ {[%emt 0:00:03]} Qxd4 {[%emt 0:00:02]} 21. Bxd4 {[%emt 0:00:00]} Bd6 {[%emt 0:00:01]} 22. Rab1 {[%emt 0:00:03]} b6 {[%emt 0:00:02]} 23. a4 {[%emt 0:00:02]} Rf4 {[%emt 0:00:05]} 24. c3 {[%emt 0:00:02]} Kc6 {[%emt 0:00:08]} 25. g3 {[%emt 0:00:05]} Rf5 {[%emt 0:00:02]} 26. Re8 {[%emt 0:00:03]} Ra5 {[%emt 0:00:02]} 27. Rc8+ {[%emt 0:00:05]} Kb7 {[%emt 0:00:03]} 28. Rh8 {[%emt 0:00:02]} Rxa4 {[%emt 0:00:03]} 29. Rxh7+ {[%emt 0:00:01]} Kc6 {[%emt 0:00:03]} 30. Rg7 {[%emt 0:00:14]} Bc5 {[%emt 0:00:02]} 31. Rxg6+ {[%emt 0:00:02]} Kd5 {[%emt 0:00:03]} 32. Bxc5 {[%emt 0:00:03]} Kxc5 {[%emt 0:00:02]} 33. h4 {[%emt 0:00:01][%cal Bh2h4,Bh4h5,Bh5h6][%mdl 32] Intending h5 and mate.} Rc4 {[%emt 0:00:03]} 34. h5 {[%emt 0:00:02]} Rxc3 {[%emt 0:00:01]} 35. h6 {[%emt 0:00:00] Black got outplayed after the opening.  Weighted Error Value: White=0.17 (very precise) /Black=1.83} 1-0

[Event "Queens Festival Final Team 2022"]
[Site "Tornelo"]
[Date "2022.06.26"]
[Round "8.4"]
[White "Bucci, Andrea Vidigal"]
[Black "Kosgey Sheila Jerop"]
[Result "0-1"]
[ECO "C42"]
[WhiteElo "1769"]
[BlackElo "1242"]
[Annotator "NA RC"]
[PlyCount "84"]
[EventDate "2022.06.24"]
[EventType "team-tourn"]
[EventCountry "NET"]
[SourceTitle "playchess.com"]
[Source "ChessBase"]
[SourceQuality "1"]
[WhiteTeam "Brazil"]
[BlackTeam "Kenya"]
[WhiteTeamCountry "BRA"]
[BlackTeamCountry "KEN"]
[TimeControl "180+2"]

1. e4 {[%emt 0:00:02]} e5 {[%emt 0:00:06]} 2. Nf3 {[%emt 0:00:02]} Nf6 {[%emt 0:00:01]} 3. d3 {[%emt 0:00:01]} d6 {[%emt 0:00:05]} 4. Be2 {[%emt 0:00:02]} g6 {[%emt 0:00:01]} 5. c3 {[%emt 0:00:01]} Bg7 {[%emt 0:00:02]} 6. O-O {[%emt 0:00:01]} O-O {[%emt 0:00:02]} 7. Nbd2 {[%emt 0:00:00]} Re8 {[%emt 0:00:01]} 8. Re1 {[%emt 0:00:01]} c6 {[%emt 0:00:04]} 9. Nf1 {[%emt 0:00:01]} d5 {[%emt 0:00:04]} 10. Qc2 {[%emt 0:00:03]} Nbd7 {[%emt 0:00:09]} 11. Ng3 {[%emt 0:00:02]} Nf8 {[%emt 0:00:02]} 12. Bg5 {[%emt 0:00:06]} h6 {[%emt 0:00:05]} 13. Bd2 {[%emt 0:00:02]} N8h7 {[%emt 0:00:03]} 14. Rad1 {[%emt 0:00:02]} Qc7 {[%emt 0:00:09]} 15. Qc1 {[%emt 0:00:02]} h5 {[%emt 0:00:03]} 16. Bh6 {[%emt 0:00:04]} Bh8 {[%emt 0:00:04]} 17. Ng5 {[%emt 0:00:15]} Ng4 {[%emt 0:00:28]} 18. Nxh7 {[%emt 0:00:04]} Kxh7 {[%emt 0:00:04]} 19. Bd2 {[%emt 0:00:05]} Bf6 {[%emt 0:00:11]} 20. f4 {[%emt 0:00:03]} exf4 {[%emt 0:00:06]} 21. Bxf4 {[%emt 0:00:01]} Qe7 {[%emt 0:00:05]} 22. exd5 {[%emt 0:00:10]} Qc5+ {[%emt 0:00:15]} 23. d4 {[%emt 0:00:03]} Qxd5 {[%emt 0:00:03]} 24. Bf3 {[%emt 0:00:04]} Qd8 {[%emt 0:00:10]} 25. Qc2 {[%emt 0:00:05]} Kg7 {[%emt 0:00:06]} 26. h3 {[%emt 0:00:14]} Nh6 {[%emt 0:00:24]} 27. Qd2 {[%emt 0:00:04]} Nf5 {[%emt 0:00:04]} 28. Nxf5+ {[%emt 0:00:08]} Bxf5 {[%emt 0:00:03]} 29. Bh6+ {[%emt 0:00:03]} Kh7 {[%emt 0:00:03]} 30. Rxe8 {[%emt 0:00:05]} Qxe8 {[%emt 0:00:02]} 31. Re1 {[%emt 0:00:02]} Qd7 {[%emt 0:00:07]} 32. Bg5 {[%emt 0:00:04]} Bg7 {[%emt 0:00:04]} 33. Qf2 {[%emt 0:00:04]} Re8 {[%emt 0:00:03]} 34. Rxe8 {[%emt 0:00:12]} Qxe8 {[%emt 0:00:03]} 35. Bxh5 {[%emt 0:00:01]} Qe4 {[%emt 0:00:13]} 36. Bf3 {[%emt 0:00:05]} Qb1+ {[%emt 0:00:04]} 37. Kh2 {[%emt 0:00:02]} Qxa2 {[%emt 0:00:07]} 38. g4 {[%emt 0:00:06]} Be6 {[%emt 0:00:05]} 39. Kg3 {[%emt 0:00:08]} Qa5 {[%emt 0:00:03]} 40. Be7 {[%emt 0:00:07]} Qc7+ {[%emt 0:00:02]} 41. Kg2 {[%emt 0:00:03]} Qxe7 {[%emt 0:00:02]} 42. Qh4+ {[%emt 0:00:01]} Qxh4 {[%emt 0:00:03]} 0-1

[Event "Queens Festival Final Team 2022"]
[Site "Tornelo"]
[Date "2022.06.26"]
[Round "8.4"]
[White "Mwendwa, Triza"]
[Black "Medeiros, Thauane Ferreira"]
[Result "0-1"]
[ECO "D02"]
[WhiteElo "1470"]
[BlackElo "1884"]
[Annotator "NA RC"]
[PlyCount "30"]
[EventDate "2022.06.24"]
[EventType "team-tourn"]
[EventCountry "NET"]
[SourceTitle "playchess.com"]
[Source "ChessBase"]
[SourceQuality "1"]
[WhiteTeam "Kenya"]
[BlackTeam "Brazil"]
[WhiteTeamCountry "KEN"]
[BlackTeamCountry "BRA"]
[TimeControl "180+2"]

1. d4 {[%emt 0:00:02]} d5 {[%emt 0:00:04]} 2. Bf4 {[%emt 0:00:03]} Nf6 {[%emt 0:00:02]} 3. e3 {[%emt 0:00:02]} c5 {[%emt 0:00:01]} 4. Nf3 {[%emt 0:00:06]} Nc6 {[%emt 0:00:01]} 5. Nc3 {[%emt 0:00:06]} Bf5 {[%emt 0:00:08]} 6. Nb5 {[%emt 0:00:03]} Rc8 {[%emt 0:00:06]} 7. c3 {[%emt 0:00:02]} e6 {[%emt 0:00:19]} 8. Ne5 {[%emt 0:00:03]} a6 {[%emt 0:00:07]} 9. Nxc6 {[%emt 0:00:18]} Rxc6 {[%emt 0:00:00]} 10. Na3 {[%emt 0:00:13]} cxd4 {[%emt 0:00:05]} 11. cxd4 {[%emt 0:00:03]} Bb4+ {[%emt 0:00:06]} 12. Ke2 {[%emt 0:00:07]} Bxa3 {[%emt 0:00:11]} 13. bxa3 {[%emt 0:00:02]} Rc2+ {[%emt 0:00:03]} 14. Ke1 {[%emt 0:00:04]} Qa5+ {[%emt 0:00:03]} 15. Qd2 {[%emt 0:01:37]} Qxd2# {[%emt 0:00:05]} 0-1

[Event "Queens Festival Final Team 2022"]
[Site "Tornelo"]
[Date "2022.06.26"]
[Round "8.4"]
[White "Muthoni, Vivian"]
[Black "Gomes, Maria Eduarda Papini"]
[Result "0-1"]
[ECO "B01"]
[WhiteElo "1128"]
[BlackElo "1618"]
[Annotator "NA RC"]
[PlyCount "66"]
[EventDate "2022.06.24"]
[EventType "team-tourn"]
[EventCountry "NET"]
[SourceTitle "playchess.com"]
[Source "ChessBase"]
[SourceQuality "1"]
[WhiteTeam "Kenya"]
[BlackTeam "Brazil"]
[WhiteTeamCountry "KEN"]
[BlackTeamCountry "BRA"]
[TimeControl "180+2"]

1. e4 {[%emt 0:00:02]} d5 {[%emt 0:00:04]} 2. exd5 {[%emt 0:00:12]} Qxd5 {[%emt 0:00:00]} 3. Nc3 {[%emt 0:00:03]} Qa5 {[%emt 0:00:02]} 4. Nf3 {[%emt 0:00:05]} Nf6 {[%emt 0:00:06]} 5. Bc4 {[%emt 0:00:09]} Bf5 {[%emt 0:00:05]} 6. O-O {[%emt 0:00:05]} e6 {[%emt 0:00:01]} 7. a3 {[%emt 0:00:05]} c6 {[%emt 0:00:03]} 8. d3 {[%emt 0:00:18]} Bd6 {[%emt 0:00:03]} 9. Qe2 {[%emt 0:00:11]} O-O {[%emt 0:00:03]} 10. Bd2 {[%emt 0:00:03]} Qc7 {[%emt 0:00:02]} 11. Ng5 {[%emt 0:00:14]} Bxh2+ {[%emt 0:00:10]} 12. Kh1 {[%emt 0:00:07]} Bf4 {[%emt 0:00:19]} 13. Bxf4 {[%emt 0:00:08]} Qxf4 {[%emt 0:00:00]} 14. Nf3 {[%emt 0:00:03]} Bg4 {[%emt 0:00:03]} 15. Rae1 {[%emt 0:00:33]} Nbd7 {[%emt 0:00:05]} 16. Qe3 {[%emt 0:00:10]} Qxe3 {[%emt 0:00:09]} 17. fxe3 {[%emt 0:00:05]} Nd5 {[%emt 0:00:04]} 18. Bxd5 {[%emt 0:00:04]} cxd5 {[%emt 0:00:01]} 19. Nh4 {[%emt 0:00:05]} Nf6 {[%emt 0:00:08]} 20. e4 {[%emt 0:00:05]} dxe4 {[%emt 0:00:06]} 21. Nxe4 {[%emt 0:00:05]} Nxe4 {[%emt 0:00:04]} 22. Rxe4 {[%emt 0:00:08]} Bh5 {[%emt 0:00:04]} 23. Re3 {[%emt 0:00:11]} Rac8 {[%emt 0:00:04]} 24. c4 {[%emt 0:00:05]} Rfd8 {[%emt 0:00:04]} 25. Rg3 {[%emt 0:00:05]} Rd4 {[%emt 0:00:08]} 26. Nf3 {[%emt 0:00:05]} Rxd3 {[%emt 0:00:04]} 27. Ne5 {[%emt 0:00:03]} Rxg3 {[%emt 0:00:03]} 28. Kh2 {[%emt 0:00:04]} Rg5 {[%emt 0:00:04]} 29. Nf3 {[%emt 0:00:12]} Bxf3 {[%emt 0:00:02]} 30. Rxf3 {[%emt 0:00:04]} Rxc4 {[%emt 0:00:03]} 31. Rd3 {[%emt 0:00:03]} h6 {[%emt 0:00:01]} 32. b3 {[%emt 0:00:05]} Rc7 {[%emt 0:00:05]} 33. Rd8+ {[%emt 0:00:08]} Kh7 {[%emt 0:00:03]} 0-1

[Event "Queens Festival Final Team 2022"]
[Site "Tornelo"]
[Date "2022.06.26"]
[Round "8.5"]
[White "Perez Rodriguez, Jennifer"]
[Black "Ovezdurdiyeva, Jemal"]
[Result "1-0"]
[ECO "B22"]
[WhiteElo "2251"]
[BlackElo "2061"]
[Annotator "RC"]
[PlyCount "53"]
[EventDate "2022.06.24"]
[EventType "team-tourn"]
[EventCountry "NET"]
[SourceTitle "playchess.com"]
[Source "ChessBase"]
[SourceQuality "1"]
[WhiteTeam "Paraguay"]
[BlackTeam "Turkmenistan"]
[WhiteTeamCountry "PAR"]
[BlackTeamCountry "TKM"]
[TimeControl "180+2"]

1. e4 {[%emt 0:00:02]} c5 {[%emt 0:00:04]} 2. c3 {[%emt 0:00:02]} d5 {[%emt 0:00:02]} 3. exd5 {[%emt 0:00:02]} Qxd5 {[%emt 0:00:01]} 4. d4 {[%emt 0:00:00]} Nf6 {[%emt 0:00:03]} 5. Nf3 {[%emt 0:00:01]} Nc6 {[%emt 0:00:02]} 6. Be3 {[%emt 0:00:04]} cxd4 {[%emt 0:00:01]} 7. cxd4 {[%emt 0:00:01]} Bg4 {[%emt 0:00:02]} 8. Nc3 {[%emt 0:00:01]} Qd6 {[%emt 0:00:02]} 9. d5 {[%emt 0:00:06]} Ne5 {[%emt 0:00:21]} 10. Nxe5 {[%emt 0:00:19]} Qxe5 {[%emt 0:00:34]} 11. Bb5+ {[%emt 0:00:05]} Bd7 {[%emt 0:00:03]} 12. Bxd7+ {[%emt 0:00:04]} Nxd7 {[%emt 0:00:01]} 13. O-O {[%emt 0:00:07]} f6 {[%emt 0:00:04]} 14. Re1 {[%emt 0:00:06]} Qf5 {[%emt 0:00:17]} 15. Qb3 {[%emt 0:00:12]} b6 {[%emt 0:00:10]} 16. Nb5 {[%emt 0:00:08]} Kf7 {[%emt 0:00:32]} 17. Rac1 {[%emt 0:00:09]} g5 {[%emt 0:00:10]} 18. Nd4 {[%emt 0:00:09]} Qg4 {[%emt 0:00:22]} 19. h3 {[%emt 0:00:06]} Qh5 {[%emt 0:00:02]} 20. d6+ {[%emt 0:00:06]} Kg6 {[%emt 0:00:02]} 21. dxe7 {[%emt 0:00:12]} Bxe7 {[%emt 0:00:05]} 22. Qe6 {[%emt 0:00:01]} Bb4 {[%emt 0:00:16]} 23. Qxd7 {[%emt 0:00:10]} Bxe1 {[%emt 0:00:02]} 24. Qf5+ {[%emt 0:00:01]} Kh6 {[%emt 0:00:04]} 25. Qxf6+ {[%emt 0:00:03]} Qg6 {[%emt 0:00:01]} 26. Bxg5+ {[%emt 0:00:04]} Kh5 {[%emt 0:00:02]} 27. g4# {[%emt 0:00:01]} 1-0

[Event "Queens Festival Final Team 2022"]
[Site "Tornelo"]
[Date "2022.06.26"]
[Round "8.5"]
[White "Shohradowa, Lala"]
[Black "Mayeregger Gonzalez, Fiorella"]
[Result "1-0"]
[ECO "D13"]
[WhiteElo "1856"]
[BlackElo "1284"]
[Annotator "NA RC"]
[PlyCount "75"]
[EventDate "2022.06.24"]
[EventType "team-tourn"]
[EventCountry "NET"]
[SourceTitle "playchess.com"]
[Source "ChessBase"]
[SourceQuality "1"]
[WhiteTeam "Turkmenistan"]
[BlackTeam "Paraguay"]
[WhiteTeamCountry "TKM"]
[BlackTeamCountry "PAR"]
[TimeControl "180+2"]

1. d4 {[%emt 0:00:02]} d5 {[%emt 0:00:06]} 2. c4 {[%emt 0:00:02]} c6 {[%emt 0:00:03]} 3. Nf3 {[%emt 0:00:03]} Nf6 {[%emt 0:00:03]} 4. cxd5 {[%emt 0:00:03]} cxd5 {[%emt 0:00:05]} 5. Nc3 {[%emt 0:00:02]} Nc6 {[%emt 0:00:05]} 6. Bf4 {[%emt 0:00:01]} a6 {[%emt 0:00:03]} 7. e3 {[%emt 0:00:02]} e6 {[%emt 0:00:02]} 8. Bd3 {[%emt 0:00:03]} Bd6 {[%emt 0:00:03]} 9. Bg3 {[%emt 0:00:02]} O-O {[%emt 0:00:02]} 10. Ne5 {[%emt 0:00:05]} Qc7 {[%emt 0:00:07]} 11. f4 {[%emt 0:00:04]} b5 {[%emt 0:00:12]} 12. Rc1 {[%emt 0:00:08]} Bb7 {[%emt 0:00:08]} 13. O-O {[%emt 0:00:02]} Rac8 {[%emt 0:00:05]} 14. Bh4 {[%emt 0:00:03]} Be7 {[%emt 0:00:06]} 15. a3 {[%emt 0:00:08]} Qd8 {[%emt 0:00:05]} 16. b4 {[%emt 0:00:06]} Nd7 {[%emt 0:00:12]} 17. Bxe7 {[%emt 0:00:02]} Qxe7 {[%emt 0:00:04]} 18. Qh5 {[%emt 0:00:17]} g6 {[%emt 0:00:15]} 19. Qh6 {[%emt 0:00:07]} Nb6 {[%emt 0:00:07]} 20. Rf3 {[%emt 0:00:07]} Nc4 {[%emt 0:00:19]} 21. Rh3 {[%emt 0:00:04]} f5 {[%emt 0:00:15]} 22. Nxg6 {[%emt 0:00:20]} hxg6 {[%emt 0:00:15]} 23. Qh8+ {[%emt 0:00:05]} Kf7 {[%emt 0:00:09]} 24. Rh7+ {[%emt 0:00:01]} Ke8 {[%emt 0:00:08]} 25. Rxe7+ {[%emt 0:00:02]} Kxe7 {[%emt 0:00:09]} 26. Qg7+ {[%emt 0:00:02]} Rf7 {[%emt 0:00:02]} 27. Qxg6 {[%emt 0:00:02]} Nxe3 {[%emt 0:00:06]} 28. Re1 {[%emt 0:00:03]} Rf6 {[%emt 0:00:10]} 29. Qg7+ {[%emt 0:00:04]} Rf7 {[%emt 0:00:02]} 30. Qg5+ {[%emt 0:00:01]} Rf6 {[%emt 0:00:08]} 31. Rxe3 {[%emt 0:00:03]} Nxd4 {[%emt 0:00:03]} 32. Qg7+ {[%emt 0:00:02]} Rf7 {[%emt 0:00:06]} 33. Qxd4 {[%emt 0:00:02]} Rg8 {[%emt 0:00:08]} 34. Nxd5+ {[%emt 0:00:04]} Bxd5 {[%emt 0:00:04]} 35. Qxd5 {[%emt 0:00:02]} Rf6 {[%emt 0:00:06]} 36. Qb7+ {[%emt 0:00:05]} Kf8 {[%emt 0:00:05]} 37. Bxf5 {[%emt 0:00:03]} Rxf5 {[%emt 0:00:04]} 38. Rxe6 {[%emt 0:00:03]} 1-0